Cogmind - Beta 15 @@@ ROGUE MODE // 2025.05.17 @ 11:07:11 Player: Minty Result: Destroyed self with Grenade Launcher Performance ------------- Evolutions (0) 0 Regions Visited (2) 400 Robots Destroyed (27) 135 Value Destroyed (677) 677 Prototype IDs (0) 0 Alien Tech Used (0) 0 Bonus (0) 0 TOTAL SCORE: 1212 Bonus ------- None Cogmind --------- Core Integrity 0/250 Matter 240/300 Energy 118/200 System Corruption 1% Temperature Cool (0) Movement Rolling (115) Ox1 Location -10/Subcaves Parts ------- > --- POWER (1) -------- Subdweller Power Source > --- PROPULSION (2) --- Compact Wheel > --- UTILITY (2) ------ Small Storage Unit Structural Scanner > --- WEAPON (2) ------- Subdweller Beam Cannon > --- INVENTORY (8) ---- Subdweller Power Source Improved Heat Sink Disposable Heat Sink Subdweller Optics EM Pulse Gun Subdweller Laser Beam Cannon Flamer Peak State ------------ > --- POWER ------------ Subdweller Power Source > --- PROPULSION ------- Compact Wheel Compact Wheel > --- UTILITY ---------- Improved Heat Sink Small Storage Unit > --- WEAPON ----------- Beam Cannon Subdweller Beam Cannon > --- INVENTORY -------- Structural Scanner Subdweller Optics Improved Terrain Scanner EM Pulse Gun Beam Cannon Grenade Launcher Flamer [Rating: 12] Favorites ----------- Power Ion Engine Engine Ion Engine Propulsion Aluminum Leg Leg Aluminum Leg Wheel Compact Wheel Utility Small Storage Unit Device Improved Heat Sink Storage Small Storage Unit Weapon Beam Cannon Energy Gun Small Laser Energy Cannon Beam Cannon Launcher Grenade Launcher Build | -11 -10 -10 ------- Run | Yrd Mat Sub Slots Evolved . | . . . Power . | . . . Propulsion . | . . . Utility . | . . . Weapon . | . . . Parts Attached 17 | . 10 7 Power 2 | . 1 1 Engine 2 | . 1 1 Core . | . . . Reactor . | . . . Propulsion 4 | . . 4 Treads . | . . . Leg . | . . . Wheel 4 | . . 4 Hover . | . . . Flight . | . . . Utility 4 | . 3 1 Device 3 | . 2 1 Storage 1 | . 1 . Processor . | . . . Hackware . | . . . Protection . | . . . Artifact . | . . . Weapon 7 | . 6 1 Energy Gun 2 | . 2 . Energy Cannon 4 | . 3 1 Ballistic Gun . | . . . Ballistic Cannon . | . . . Launcher 1 | . 1 . Special Weapon . | . . . Impact Weapon . | . . . Slashing Weapon . | . . . Piercing Weapon . | . . . Special Melee Weapon . | . . . Unidentified Prototypes . | . . . Parts Lost 4 | . . 4 Power 1 | . . 1 Propulsion 2 | . . 2 Utility . | . . . Weapon 1 | . . 1 Highest Loss Streak 2 | . . 2 To Critical Strikes . | . . . Average Backups 7 | 6 7 7 Power . | 1 . . Propulsion 2 | 4 3 . Utility 1 | . . 3 Weapon 3 | 1 2 3 Tool/Special . | . . . Unused Backups 15 | . 9 6 Power 3 | . 2 1 Propulsion . | . . . Utility 5 | . 2 3 Weapon 7 | . 5 2 Tool/Special . | . . . Average Slot Usage (%) 97 | . 97 97 Engine 13 | . 14 12 Leg 19 | . 28 10 Wheel 7 | . . 16 Device 12 | . 11 14 Storage 14 | . 14 14 Energy Gun 2 | . 3 . Energy Cannon 25 | . 23 27 Peak Build Rating 12 | 6 9 12 Average Rating 8 | 6 7 10 On Entrance 7 | 6 6 9 Naked Turns . | . . . Heaviest Build 22 | 12 17 22 Greatest Support 32 | 20 20 32 Greatest Overweight (x) 1 | . . 1 Average Overweight (x) . | . . . Largest Inventory Capacity 8 | 8 8 8 Average Capacity 8 | 8 8 8 Most Carried 8 | 6 8 8 Average Carried 7 | 6 7 7 Final Capacity 8 | 8 8 8 Final Carried 8 | 6 7 8 Class Distribution -------------------- 100% | Mutant Dominant Class ---------------- Mutant | -10/Materials Mutant | -10/Subcaves Resources | -11 -10 -10 ----------- Run | Yrd Mat Sub Matter Collected 440 | 200 90 150 Remotely . | . . . Salvage Created 963 | . 640 323 Parts 66 | . 45 21 Haulers Intercepted 2 | . 2 . Recyclers Shooed 1 | . 1 . Parts Field Recycled . | . . . Retrieved Matter . | . . . Parts Self-Destructed 14 | . . 14 Prevented . | . . . Kills | -11 -10 -10 ------- Run | Yrd Mat Sub Combat Hostiles Destroyed 17 | . 9 8 Cannons 15 | . 9 6 AOE 2 | . . 2 Classes Destroyed 10 | . 8 2 Worker 1 | . 1 . Builder 3 | . 3 . Tunneler 2 | . 2 . Hauler 2 | . 2 . Recycler 1 | . 1 . Watcher 1 | . 1 . Swarmer 3 | . 3 . Grunt 8 | . 6 2 Artisan 1 | . . 1 Subdweller 6 | . . 6 Best Kill Streak 4 | . 4 3 Combat Bots Only 2 | . 2 2 Max Kills in Single Turn 3 | . 3 1 Gunslinging . | . . . Exploded 1 | . . 1 Melee . | . . . Uniques/NPCs Destroyed . | . . . Combat | -11 -10 -10 -------- Run | Yrd Mat Sub Hostile Shots Fired 59 | . 27 32 Missed 18 | . 9 9 Hits 41 | . 18 23 Projectile 41 | . 18 23 Critical Strikes 2 | . . 2 Damage Taken 849 | . 202 647 Core 254 | . 28 226 Absorbed by Shields . | . . . Core Remaining (%) 100 | 100 . . Volleys Fired 56 | . 33 23 Largest 2 | . 2 2 Hottest 140 | . 120 140 Shots Fired 108 | . 64 44 Gun 6 | . 6 . Cannon 94 | . 56 38 Launcher 8 | . 2 6 Special . | . . . Kinetic . | . . . Thermal 100 | . 62 38 Explosive 8 | . 2 6 Electromagnetic . | . . . Robot Hit Streak 20 | . 8 20 Robot Miss Streak 4 | . 4 3 Penetration Max . | . . . Secondary Targets . | . . . Shots Hit Robots 69 | . 36 33 Core Hits 38 | . 24 14 Critical Kills . | . . . Critical Parts Destroyed . | . . . Critical Strikes . | . . . Melee Attacks . | . . . Impact . | . . . Slashing . | . . . Piercing . | . . . Sneak Attacks . | . . . Combat Hostiles . | . . . Follow-up Attacks . | . . . Damage Inflicted 1790 | . 902 888 Guns 55 | . 55 . Cannons 1161 | . 592 569 Explosions 574 | . 255 319 Melee . | . . . Ramming . | . . . Kinetic . | . . . Thermal 1380 | . 811 569 Explosive 410 | . 91 319 Electromagnetic . | . . . Impact . | . . . Slashing . | . . . Piercing . | . . . Highest Corruption 1 | . 1 1 Average Corruption 1 | . 1 1 Corruption Purged . | . . . Corruption Blocked . | . . . Effects 5 | . 1 4 Message Errors 1 | . 1 . Matter Fused 1 | . . 1 Heat Flow Errors 1 | . . 1 Data Loss (minor) 2 | . . 2 Overload Shots . | . . . Overflow Damage 11 | . . 11 Projectiles . | . . . Explosions 11 | . . 11 Melee . | . . . Knockbacks . | . . . Impact . | . . . Kinetic . | . . . Secondary . | . . . Self-Inflicted Damage 83 | . . 83 Shots 3 | . . 3 Rammed . | . . . Targets Rammed . | . . . Kicked . | . . . Crushed . | . . . Highest Temperature 360 | . 360 147 Average Temperature 77 | . 81 33 Received Heat Transfer 228 | . 87 141 Siege Activations . | . . . Martial Activations . | . . . Shielding Activations . | . . . Robots Disrupted . | . . . Combat Hostiles . | . . . Robots Corrupted . | . . . Combat Hostiles . | . . . Parts Fried . | . . . Impact Corruptions . | . . . Robots Melted . | . . . Combat Hostiles . | . . . Parts Melted 3 | . 3 . Heat Transferred 2445 | . 1483 962 Parts Sabotaged . | . . . Parts Stolen . | . . . Parts Stripped . | . . . Power Chain Reactions . | . . . Alert | -11 -10 -10 ------- Run | Yrd Mat Sub Maximum Alert Level . | . . . Low Security (%) 100 | 100 100 . Level 1 . | . . . Level 2 . | . . . Level 3 . | . . . Level 4 . | . . . Level 5 . | . . . High Security . | . . . Max Security . | . . . Peak Influence 153 | . 153 . Initial . | . . . Average 87 | . 92 . Influence Increases 451 | . 401 50 Destroy 0b10 Robot/C 220 | . 180 40 Destroy 0b10 Robot/NC 60 | . 60 . Destroy Leader 56 | . 46 10 Successful Hack 14 | . 14 . Disable Machine 60 | . 60 . Destroy Structure 11 | . 11 . Lose Combat Pursuer 30 | . 30 . Influence Decreases 451 | . 270 181 Entered New Map 63 | . . 63 Time Decay 368 | . 270 98 Lost Part 20 | . . 20 Squads Dispatched 1 | . 1 . Investigation 1 | . 1 . Extermination . | . . . Reinforcement . | . . . Assault . | . . . Garrison . | . . . Intercept . | . . . Searches Triggered . | . . . Construction Impeded . | . . . Haulers Reinforced . | . . . Active Scanning Responses . | . . . Cargo Convoy Interrupts . | . . . Stealth | -11 -10 -10 --------- Run | Yrd Mat Sub Distress Signals 2 | . 2 . Communications Jammed . | . . . Distress Signals . | . . . Times Spotted 26 | . 15 11 Peak Tracking Total 4 | . 4 4 Tactical Retreats 1 | . 1 . Traps | -11 -10 -10 ------- Run | Yrd Mat Sub Traps Triggered 4 | . 2 2 Indirectly . | . . . Trap Hack Attempts . | . . . Triggered . | . . . Disarmed . | . . . Reprogrammed . | . . . Reused . | . . . Traps Extracted . | . . . Installed . | . . . Triggered . | . . . Objects Rigged 6 | . 6 . Exploded 1 | . 1 . Machines | -11 -10 -10 ---------- Run | Yrd Mat Sub Machines Disabled 4 | . 4 . Max in Single Turn 4 | . 4 . Machines Repaired . | . . . Machines Dismantled . | . . . Machines Sabotaged . | . . . Overloaded Fab Kills . | . . . Hacking | -11 -10 -10 --------- Run | Yrd Mat Sub Machines Accessed 3 | . 3 . Terminals 3 | . 3 . Fabricators . | . . . Repair Stations . | . . . Recycling Units . | . . . Scanalyzers . | . . . Garrison Access . | . . . Total Hacks 6 | . 6 . Successful 2 | . 2 . Failed 4 | . 4 . Catastrophic 3 | . 3 . Database Lockouts . | . . . Manual 4 | . 4 . Terminals 6 | . 6 . Fabricators . | . . . Repair Stations . | . . . Recycling Units . | . . . Scanalyzers . | . . . Garrison Access . | . . . Terminal Hacks 1 | . 1 . Zone Layout 1 | . 1 . Fabricator Hacks . | . . . Repair Station Hacks . | . . . Recycling Unit Hacks . | . . . Scanalyzer . | . . . Garrison Access Hacks . | . . . Unauthorized Hacks 1 | . 1 . Terminals 1 | . 1 . Detonate 1 | . 1 . Fabricators . | . . . Repair Stations . | . . . Recycling Units . | . . . Scanalyzers . | . . . Garrison Access . | . . . Data Cores Recovered . | . . . Used . | . . . Hacking Detections 3 | . 3 . Full Trace Events . | . . . Feedback Events . | . . . Feedback Blocked . | . . . Robot Schematics Acquired . | . . . Robots Built . | . . . Authchips . | . . . Time . | . . . Total Robot Build Rating . | . . . Part Schematics Acquired . | . . . Parts Built . | . . . Authchips . | . . . Time . | . . . Total Part Build Rating . | . . . Parts Repaired . | . . . Time . | . . . Parts Recycled . | . . . Recycled Matter . | . . . Retrieved Matter . | . . . Retrieved Components . | . . . Parts Scanalyzed . | . . . Part Schematics Acquired . | . . . Parts Damaged . | . . . Bothacking | -11 -10 -10 ------------ Run | Yrd Mat Sub Used RIF Installer . | . . . Robots Hacked . | . . . Non-combat . | . . . Combat . | . . . Robot Hacks Applied . | . . . Relay Couplers Released . | . . . Fabnet Peak Effective % . | . . . Robots Rewired . | . . . Allies Hacked . | . . . Hacks Repelled . | . . . Allies | -11 -10 -10 -------- Run | Yrd Mat Sub Total Allies . | . . . Largest Group . | . . . Highest-Rated Group . | . . . Highest-Rated Ally . | . . . Total Orders . | . . . Ally Attacks . | . . . Total Damage . | . . . Kills . | . . . Allies Corrupted . | . . . Allies Melted . | . . . Intel | -11 -10 -10 ------- Run | Yrd Mat Sub Active Infowar (turns) 380 | . 163 217 Structural 380 | . 163 217 Robot Analysis Total . | . . . Derelict Logs Recovered 1 | . . 1 Drone Launches . | . . . Drone Recoveries . | . . . Exploration | -11 -10 -10 ------------- Run | Yrd Mat Sub Turns Passed 1107 | 30 586 491 Spaces Moved 761 | 26 381 354 Core . | . . . Treads . | . . . Legs 497 | 26 381 90 Wheels 264 | . . 264 Hover . | . . . Flight . | . . . Fastest Speed 90 | 120 120 90 Average Speed 113 | 120 120 105 Slowest Speed 190 | 120 120 190 Overloaded Moves . | . . . Propulsion Burnouts . | . . . Robots Hopped . | . . . Potential Cave-ins . | . . . Cave-ins Triggered . | . . . Exploration Rate (%) 30 | 3 68 19 Regions Visited 2 Branch Regions 1 Pre-discovered Areas 1 | . . 1 Known Exits Taken . | . . . Unknown Exits Taken 2 | 1 1 . Scrap Searched . | . . . Spaces Dug . | . . . Terrain Destroyed 40 | . 12 28 Melee . | . . . Projectile 1 | . . 1 AOE 39 | . 12 27 Terrain Rammed . | . . . Walls Destroyed . | . . . Machines Disabled . | . . . Actions | -11 -10 -10 --------- Run | Yrd Mat Sub Total 900 | 25 448 427 Wait 31 | . 7 24 Move 759 | 25 380 354 Hop . | . . . Pick Up 11 | . 5 6 Fast Attach 5 | . 4 1 Attach 3 | . 1 2 Detach 3 | . 3 . Swap 15 | . 5 10 Drop 16 | . 9 7 Fire 56 | . 33 23 Melee . | . . . Ram . | . . . Kick . | . . . Crush . | . . . Escape Stasis . | . . . Rewire 1 | . 1 . Trap . | . . . Miscellaneous . | . . . Route ------- -11/Scrapyard -10/Materials (discovered 3 exits: [*Mat x2] / [*Sub]) -10/Subcaves (discovered 1 exit: [*Mat]) History --------- Turn | Location | Event 1 | -11/Scrapyard | Discovered new exit (range 3) 31 | -11/Scrapyard | Entered Materials 313 | -10/Materials | Build established: Mutant 374 | -10/Materials | Discovered new exit (range 4) 565 | -10/Materials | Discovered new exit (range 8) 606 | -10/Materials | Discovered new exit (range 10) 617 | -10/Materials | Entered Subcaves 618 | -10/Subcaves | Approached by a straggling Scientist 729 | -10/Subcaves | Shifting Twisted Machinery released Flamer 790 | -10/Subcaves | Shifting Twisted Machinery released Sub. Power Source 841 | -10/Subcaves | Ambushed by angry Subdweller bent on revenge 1022 | -10/Subcaves | Core integrity fell below 50% 1079 | -10/Subcaves | Discovered new exit (range 16) 1091 | -10/Subcaves | Learned location of Zion (-7) 1098 | -10/Subcaves | A Subdweller sparked back to life 1098 | -10/Subcaves | A Subdweller sparked back to life 1105 | -10/Subcaves | Core integrity fell below 20% 1108 | -10/Subcaves | Destroyed self with Grenade Launcher Last Messages --------------- 00893_ Acquired Sub. Power Source. 00898_ Acquired 10 matter. 00909_ Subatomizers dissect the Disposable Heat Sink. 00970_ System corrupted: Component data lost. 00981_ Triggered Piercing Trap. 00981_ Spikes shoot up from the floor. 00981_ Critical hit (Impale). 01020_ System corrupted: Heat flow error (+192). 01021_ Triggered Shrapnel Trap. 01021_ An expanding cloud of shrapnel blasts out in all directions. 01079_ EXIT=FOUND 01091_ Acquired derelict log, extracted data. World map updated: -7/Zion. 01098_ PJ-5SX(R) creaks and sparks as it begins to move. 01098_ FK-254(R) creaks and sparks as it begins to move. 01100_ Wheel destroyed. 01102_ PJ-5SX(R) destroyed. 01108_ QV-E4R(R) destroyed. 01108_ Grenade Launcher destroyed. 01108_ Destroyed Grenade Launcher. Map ----- +----------------------------------------------------+ | ?????????????????????????????????????????????????? | | ?????????????????????????????????????????????????? | | ?????????????????????????????????????????????????? | | ?????????????????????????????????????????????????? | | ?????????????????????????????????????????????????? | | ?????????????????????????????????????????????????? | | ?????????????????????????????????????????????????? | | ?????????????????????????????????????????????????? | | ?????????????????????????????????????????????????? | | ?????????????????????????????????????????????????? | | ?????????????????????#####???????????????????????? | | ????????????????????########?????????????????????? | | ???????????????????#### ###?????????????????????? | | ??????????????????? ## ?????????????????????? | | ??????????????????? ??????????????????????? | | ????????????????????? ###???????????????????? | | ?????????????????????? #####?????????????????? | | ??????????????#####???? #### ????????????????? | | ????????????#######????? ###????????????????? | | ????????????#### <